bitfinex-derivatives/quotes_SOLF0:USTF0_20241212
["timestamp","ask_amount","ask_price","bid_price","bid_amount"]
[1733977582570,3.5178,230.61,230.53,2.1676]
[1733977582770,1.3508,230.61,230.53,2.1676]
[1733977583562,1.3508,230.61,230.49,1.3639]
[1733977584267,2.1675,230.55,230.49,3.5319]
[1733977584464,2.1675,230.55,230.41,85.79518584]
[1733977584465,6.3744,230.61,230.46,3.64]
[1733977584867,6.3744,230.61,230.46,8.75716241]
[1733977585170,2.1677,230.53,230.46,8.75716241]
[1733977585566,6.3744,230.61,230.46,5.11716241]
[1733977585771,6.3744,230.61,230.47,2.1682]
[1733977585966,6.3744,230.61,230.46,5.11716241]
[1733977586986,6.3744,230.61,230.47,0.7969288]
[1733977586987,1.3508,230.61,230.47,0.7969288]
[1733977587265,1.3508,230.61,230.46,5.11716241]
[1733977587461,1.3508,230.61,230.47,0.79692294]
[1733977587663,1.3508,230.61,230.46,5.11716241]
[1733977588662,2.1674,230.56,230.49,2.168]
[1733977588862,2.1674,230.56,230.46,5.11716241]
[1733977589763,2.1675,230.55,230.46,5.11716241]
[1733977590674,2.1675,230.55,230.49,2.168]
[1733977591469,2.1675,230.55,230.48,2.1681]
[1733977591863,2.1676,230.54,230.48,2.1681]
[1733977592270,2.1676,230.54,230.46,7.28536241]
[1733977592572,2.1678,230.52,230.46,2.1682]
[1733977593870,2.1679,230.51,230.45,5.6083]
[1733977594071,4.7908,230.61,230.45,3.44]
[1733977595576,2.1678,230.52,230.46,2.1683]
[1733977598172,1.3508,230.61,230.45,23.93545286]
[1733977598376,1.3508,230.61,230.45,3.44]
[1733977598875,1.3508,230.61,230.47,2.1682]
[1733977599472,2.1678,230.53,230.47,2.1682]
[1733977599773,3.44,230.59,230.48,2.1681]
[1733977600370,3.44,230.59,230.45,3.44]
[1733977600371,20.49545286,230.58,230.45,5.6084]
[1733977600566,21.85815286,230.58,230.45,5.6084]
[1733977601173,12.81356382,230.56,230.45,3.44]
[1733977601377,2.1679,230.51,230.46,2.1683]
[1733977601577,12.81356382,230.56,230.45,3.44]
[1733977602574,1.3627,230.58,230.45,3.44]
[1733977603485,2.1676,230.54,230.5,2.1679]
[1733977603773,2.1676,230.54,230.45,3.44]
[1733977603774,1.3508,230.61,230.46,12.81356382]
[1733977603973,12.81356382,230.56,230.45,3.44]
[1733977604173,2.1679,230.51,230.46,2.1682]
[1733977604371,12.81356382,230.56,230.45,3.44]
[1733977605482,2.1679,230.51,230.45,2.1684]
[1733977606476,12.81356382,230.56,230.42,2.848]
[1733977606672,2.1682,230.48,230.43,2.1685]
[1733977607282,1.4268,230.59,230.43,12.81356382]
[1733977607478,12.81356382,230.58,230.43,12.81356382]
[1733977607683,2.1675,230.55,230.5,2.1679]
[1733977607977,12.81356382,230.58,230.5,2.1679]
[1733977608177,12.81356382,230.58,230.43,12.81356382]
[1733977608783,2.1681,230.49,230.44,2.1685]
[1733977609685,2.1679,230.51,230.44,2.1685]
[1733977609877,2.1679,230.51,230.45,2.1684]
[1733977610078,12.81356382,230.58,230.42,2.848]
[1733977610274,12.81356382,230.58,230.43,12.81356382]
[1733977611684,2.1677,230.53,230.47,2.1682]
[1733977611879,12.81356382,230.58,230.43,12.81356382]
[1733977612582,2.1677,230.53,230.47,2.1682]
[1733977613582,2.1677,230.53,230.48,2.1681]
[1733977613783,12.81356382,230.58,230.48,2.1681]
[1733977614081,2.1675,230.55,230.48,2.1681]
[1733977614280,5.23927322,230.6,230.5,2.1679]
[1733977614476,2.1674,230.56,230.5,2.1679]
[1733977614676,2.1674,230.56,230.48,3.24]
[1733977614677,5.23927322,230.6,230.48,5.4081]
[1733977614882,2.1678,230.52,230.48,3.24]
[1733977615279,12.81356382,230.57,230.48,3.24]
[1733977615677,2.1676,230.55,230.48,3.24]
[1733977615878,12.81356382,230.57,230.48,3.24]
[1733977616188,12.81356382,230.57,230.45,2.1684]
[1733977617685,12.81356382,230.57,230.43,5.4085]
[1733977617983,12.81356382,230.54,230.43,5.4085]
[1733977618885,12.81356382,230.51,230.41,65.29973298]
[1733977619483,2.1684,230.46,230.41,65.29973298]
[1733977619680,12.81356382,230.51,230.41,65.29973298]
[1733977620088,12.81356382,230.48,230.32,1.4447]
[1733977620289,12.81356382,230.48,230.33,3.24]
[1733977620883,12.81356382,230.48,230.36,2.1692]
[1733977621594,2.1687,230.43,230.37,2.1692]
[1733977623390,2.1687,230.43,230.33,3.24]
[1733977623391,192.34776221,230.57,230.4,12.81356382]
[1733977623591,12.81356382,230.57,230.41,4.4366]
[1733977624185,2.1679,230.51,230.46,2.1683]
[1733977624591,2.1678,230.52,230.46,2.1682]
[1733977624794,2.1678,230.52,230.42,1.4503]
[1733977625298,12.81356382,230.54,230.43,2.1685]
[1733977625590,12.81356382,230.54,230.42,4.5103]
[1733977625799,2.1681,230.49,230.42,4.5103]
[1733977627597,2.1681,230.49,230.43,2.1686]
[1733977627993,1.4032,230.59,230.42,4.5103]
[1733977627994,2.1678,230.52,230.42,4.5103]
[1733977628292,12.81356382,230.58,230.45,2.1684]
[1733977628499,28.43978319,230.59,230.45,2.1684]
[1733977628500,12.81356382,230.55,230.45,2.1684]
[1733977628688,12.81356382,230.55,230.44,2.1685]
[1733977628895,12.81356382,230.55,230.42,4.5103]
[1733977629091,2.1678,230.53,230.42,4.5103]
[1733977629992,12.81356382,230.55,230.42,4.5103]
[1733977630197,2.1676,230.54,230.42,4.5103]
[1733977630700,12.81356382,230.55,230.42,4.5103]
[1733977630900,4.4632,230.59,230.42,4.5103]
[1733977631096,1.4032,230.59,230.43,12.81356382]
[1733977631299,2.1672,230.58,230.46,12.81356382]
[1733977631594,12.81356382,230.61,230.46,12.81356382]
[1733977631795,19.4776,230.91,230.46,12.81356382]
[1733977631796,12.81356382,230.64,230.46,12.81356382]
[1733977631996,2.1669,230.62,230.47,1.4304]
[1733977632202,2.1669,230.62,230.48,3.06]
[1733977632704,2.1669,230.62,230.56,2.1674]
[1733977633403,2.16797467,230.63,230.49,12.81356382]
[1733977633404,2.167,230.61,230.49,12.81356382]
[1733977634695,2.16797467,230.63,230.49,12.81356382]
[1733977634895,4.33477467,230.63,230.49,12.81356382]
[1733977635601,4.33477467,230.63,230.5,5.26457971]
[1733977635904,3.5107,230.65,230.5,5.26457971]
[1733977636105,3.5107,230.65,230.51,1.4556]
[1733977636299,2.1662,230.69,230.55,12.81356382]
[1733977636494,5.27446674,230.71,230.56,3.06]
[1733977636701,5.27446674,230.71,230.58,12.81356382]
[1733977636998,2.1661,230.7,230.58,12.81356382]
[1733977637996,2.1661,230.7,230.63,2.1667]
[1733977638400,2.1661,230.7,230.58,12.81356382]
[1733977640300,2.1661,230.7,230.64,2.1666]
[1733977640794,1.4043,230.72,230.64,2.1666]
[1733977640992,179.53419839,230.84,230.61,15.87356382]
[1733977641203,12.81356382,230.79,230.61,15.87356382]
[1733977641498,12.81356382,230.79,230.62,1.365]
[1733977641706,12.81356382,230.79,230.65,2.1665]
[1733977642100,12.81356382,230.79,230.62,1.365]
[1733977642300,2.1659,230.72,230.66,2.1664]
[1733977642501,5.20248006,230.76,230.62,6.51962682]
[1733977642999,5.20248006,230.76,230.63,1.3951]
[1733977643205,2.1656,230.75,230.63,1.3951]
[1733977643401,12.81356382,230.79,230.64,12.81356382]
[1733977643601,4.1082,230.81,230.64,12.81356382]
[1733977643801,4.1082,230.81,230.67,12.81356382]
[1733977644002,9.3632146,230.81,230.68,2.86]
[1733977644502,4.1082,230.81,230.68,2.86]
[1733977644898,1.334,230.81,230.68,2.86]
[1733977645105,1.334,230.81,230.7,12.81356382]
[1733977648111,1.3291,230.87,230.73,12.81356382]
[1733977648411,1.3291,230.87,230.74,2.86]
[1733977648607,1.3291,230.87,230.74,4.2131]
[1733977648809,2.1647,230.86,230.78,2.1652]
[1733977649104,18.05456506,230.88,230.74,4.2131]
[1733977649311,18.05456506,230.88,230.74,5.5779]
[1733977649506,5.24100124,230.88,230.74,5.5779]
[1733977649909,1.4264,230.89,230.76,12.81356382]
[1733977650113,1.4264,230.89,230.74,5.5779]
[1733977650304,1.4264,230.89,230.75,12.81356382]
[1733977650713,12.81356382,230.88,230.74,2.7179]
[1733977651006,12.81356382,230.82,230.71,2.86]
[1733977651206,2.1654,230.77,230.71,2.86]
[1733977651407,12.81356382,230.82,230.71,2.86]
[1733977651712,12.81356382,230.82,230.66,12.81356382]
[1733977651901,12.81356382,230.79,230.67,2.86]
[1733977652512,2.1656,230.76,230.67,5.0263]
[1733977652706,12.81356382,230.79,230.67,2.86]
[1733977653313,12.81356382,230.79,230.69,2.1661]
[1733977653616,12.81356382,230.79,230.67,2.86]
[1733977654406,2.86,230.84,230.71,2.166]
[1733977654407,2.1655,230.77,230.71,2.166]
[1733977654605,15.67356382,230.85,230.69,12.81356382]
[1733977654805,3.797,230.88,230.72,12.81356382]
[1733977655007,2.797,230.88,230.73,2.86]
[1733977655816,2.1648,230.84,230.78,2.1653]
[1733977656620,1.3791,230.88,230.78,2.1652]
[1733977656914,1.3791,230.88,230.79,2.86]
[1733977658620,3.5435,230.88,230.81,2.165]
[1733977659011,1.3791,230.88,230.76,2.86]
[1733977659320,12.81356382,230.83,230.69,12.81356382]
[1733977659519,12.81356382,230.83,230.7,2.86]
[1733977661121,2.1652,230.8,230.7,2.86]
[1733977661315,12.81356382,230.83,230.7,2.86]
[1733977661513,12.81356382,230.83,230.66,14.18726382]
[1733977661717,2.1655,230.76,230.7,2.1661]
[1733977661919,12.81356382,230.8,230.7,2.1661]
[1733977662617,2.1655,230.77,230.7,2.1661]
[1733977662914,12.81356382,230.8,230.7,2.1661]
[1733977665717,2.1654,230.77,230.7,2.1661]
[1733977667015,2.1647,230.85,230.72,12.81356382]
[1733977667320,2.1647,230.85,230.73,2.68]
[1733977667824,2.1647,230.85,230.77,2.1653]
[1733977668613,2.1647,230.85,230.78,2.1653]
[1733977669125,2.1648,230.84,230.78,2.1653]
[1733977671623,12.81356382,230.87,230.73,2.68]
[1733977672023,2.1652,230.79,230.73,4.8457]
[1733977673726,2.7569,230.88,230.71,2.166]
[1733977673727,2.1655,230.77,230.71,2.166]
[1733977673930,2.68,230.83,230.71,2.68]
[1733977674330,2.1655,230.77,230.7,2.166]
[1733977674525,12.81356382,230.81,230.7,2.166]
[1733977675024,2.1654,230.77,230.69,2.68]
[1733977675230,1.3389,230.8,230.72,2.1659]
[1733977675626,2.1654,230.78,230.72,2.1659]
[1733977675928,1.3389,230.8,230.73,2.1657]
[1733977676127,3.5041,230.8,230.69,2.68]
[1733977677024,1.3389,230.8,230.73,2.1658]
[1733977677218,2.1653,230.78,230.69,2.68]
[1733977677620,1.3389,230.8,230.69,2.68]
[1733977677822,3.5041,230.8,230.69,2.68]
[1733977678229,2.165,230.82,230.76,2.1655]
[1733977678522,26.97441481,230.85,230.75,2.68]
[1733977678723,2.1648,230.84,230.78,2.1653]
[1733977678927,4.0612,230.87,230.75,2.68]
[1733977679533,1.3812,230.87,230.75,2.68]
[1733977680334,2.1648,230.84,230.77,2.1653]
[1733977680532,1.3812,230.87,230.75,2.68]
[1733977681034,2.165,230.82,230.75,4.8455]
[1733977681229,2.165,230.82,230.75,2.68]
[1733977682630,2.165,230.82,230.76,2.1655]
[1733977684636,2.1651,230.81,230.76,2.1655]
[1733977684835,12.81356382,230.86,230.75,2.68]
[1733977685431,12.81356382,230.86,230.71,12.81356382]
[1733977685634,12.81356382,230.83,230.72,2.68]
[1733977686032,12.81356382,230.83,230.72,4.8459]
[1733977686538,2.1653,230.79,230.72,4.8459]
[1733977686939,2.1653,230.79,230.73,2.1658]
[1733977688243,12.81356382,230.83,230.73,2.1658]
[1733977688434,2.1653,230.78,230.73,2.1658]
[1733977688629,2.1653,230.78,230.72,2.68]
[1733977688836,2.1653,230.78,230.72,4.8459]
[1733977689032,12.81356382,230.83,230.71,2.68]
[1733977689238,11.95475927,230.82,230.71,2.68]
[1733977689536,12.81356382,230.83,230.71,2.68]
[1733977689736,11.95650543,230.82,230.71,2.68]
[1733977689938,12.81356382,230.83,230.71,2.68]
[1733977690144,2.1653,230.79,230.72,2.1658]
[1733977690338,32.89170899,230.87,230.71,15.49356382]
[1733977690644,1.3812,230.87,230.74,12.81356382]
[1733977691241,2.1648,230.84,230.79,2.1652]
[1733977692344,2.1646,230.86,230.81,2.165]
[1733977693641,5.30806692,230.91,230.81,2.165]
[1733977694233,12.81356382,230.92,230.82,2.1649]
[1733977694234,2.1644,230.88,230.82,2.1649]
[1733977694432,1.3551,230.93,230.83,2.48]
[1733977694635,1.3551,230.93,230.84,2.48]
[1733977695738,2.1641,230.92,230.86,2.1645]
[1733977696242,2.1641,230.92,230.84,2.48]
[1733977696438,1.3551,230.93,230.84,2.48]
[1733977697032,2.1646,230.86,230.84,2.48]
[1733977697232,2.1646,230.86,230.8,2.165]
[1733977697433,2.1646,230.86,230.81,2.48]
[1733977697834,2.1648,230.84,230.78,7.46513152]
[1733977698036,15.29356382,230.92,230.78,7.77983152]
[1733977698237,2.1651,230.81,230.76,1.3622]
[1733977698436,12.81356382,230.86,230.75,2.48]
[1733977698643,15.29356382,230.86,230.75,2.48]
[1733977700638,2.48,230.86,230.75,2.48]
[1733977701041,15.29356382,230.89,230.75,2.48]
[1733977701643,2.1649,230.83,230.77,2.1654]
[1733977702144,15.29356382,230.89,230.77,2.1654]
[1733977702740,2.1652,230.8,230.75,4.6455]
[1733977704539,12.81356382,230.86,230.75,4.6455]
[1733977704850,2.48,230.89,230.75,4.6455]
[1733977704851,2.165,230.82,230.75,4.6455]
[1733977705248,2.1647,230.85,230.75,4.6455]
[1733977705548,15.29356382,230.89,230.75,4.6455]
[1733977705750,11.93682797,230.88,230.75,4.6455]
[1733977705942,2.1651,230.81,230.75,4.6455]
[1733977706947,2.48,230.89,230.76,2.1655]
[1733977707147,11.93630507,230.88,230.76,2.1655]
[1733977707447,15.29356382,230.89,230.76,2.1655]
[1733977707649,11.936391,230.88,230.76,2.1655]
[1733977707847,2.48,230.89,230.76,2.1655]
[1733977708044,11.93551512,230.88,230.76,2.1655]
[1733977708247,12.81356382,230.89,230.75,2.48]
[1733977708649,2.48,230.9,230.81,2.165]
[1733977709041,29.45922896,230.92,230.81,2.165]
[1733977709253,11.93934629,230.91,230.81,2.165]
[1733977709443,26.97922896,230.92,230.77,12.81356382]
[1733977709643,11.94071259,230.91,230.8,12.81356382]
[1733977709945,1.3551,230.93,230.81,2.48]
[1733977710149,2.1644,230.88,230.82,2.1649]
[1733977712054,1.3551,230.93,230.82,2.1649]
[1733977712245,2.1647,230.85,230.81,2.48]
[1733977713948,2.165,230.82,230.76,2.1655]
[1733977714151,12.81356382,230.87,230.77,2.48]
[1733977714752,2.1653,230.78,230.73,2.48]
[1733977715659,2.1653,230.78,230.73,4.6458]
[1733977715858,2.1652,230.8,230.73,4.6458]
[1733977716255,12.81356382,230.87,230.73,4.6458]
[1733977716556,12.81356382,230.87,230.73,2.48]
[1733977716757,12.81356382,230.87,230.71,12.81356382]
[1733977716758,2.1653,230.78,230.71,14.97956382]
[1733977716957,2.1653,230.78,230.72,2.48]
[1733977717559,12.81356382,230.87,230.72,2.48]
[1733977719560,12.81356382,230.84,230.7,5.09772297]
[1733977719860,2.1655,230.76,230.71,4.646]
[1733977720059,2.1655,230.76,230.71,2.48]
[1733977720458,2.1655,230.76,230.71,4.646]
[1733977721460,2.1655,230.76,230.71,2.166]
[1733977721759,2.1655,230.76,230.7,4.646]
[1733977721959,9.252774,230.83,230.7,2.48]
[1733977721960,2.1654,230.78,230.7,2.48]
[1733977722158,9.252774,230.83,230.7,2.48]
[1733977723563,2.1655,230.77,230.71,2.166]
[1733977725066,9.252774,230.83,230.71,2.166]
[1733977725067,2.1655,230.76,230.71,2.166]
[1733977725761,2.1654,230.77,230.71,2.166]
[1733977725966,2.755,230.83,230.71,12.81356382]
[1733977726165,2.755,230.83,230.74,12.81356382]
[1733977726166,1.3542,230.83,230.74,12.81356382]
[1733977726667,2.8328,230.89,230.74,12.81356382]
[1733977726865,2.8328,230.89,230.7,2.48]
[1733977726866,2.8328,230.89,230.77,12.81356382]
[1733977727066,2.8328,230.89,230.78,2.48]
[1733977727271,11.0080119,230.89,230.81,8.1752119]
[1733977728668,2.1645,230.87,230.81,10.3402119]
[1733977729164,2.1645,230.87,230.81,2.165]
[1733977730275,2.48,230.9,230.82,2.1649]
[1733977730670,1.3152,230.91,230.82,2.1649]
[1733977731579,1.3152,230.91,230.78,17.41856098]
[1733977731775,1.3152,230.91,230.78,4.6452]
[1733977732865,2.1648,230.85,230.78,4.6452]
[1733977733068,2.1648,230.85,230.79,2.1652]
[1733977733264,1.3152,230.91,230.79,2.1652]
[1733977734572,2.1644,230.88,230.79,2.1652]
[1733977734771,1.3152,230.91,230.79,2.1652]
[1733977735375,2.1644,230.88,230.79,2.1652]
[1733977735571,1.3152,230.91,230.79,2.1652]
[1733977736076,2.1644,230.88,230.79,2.1652]
[1733977736270,1.3152,230.91,230.79,2.1652]
[1733977737676,2.1648,230.84,230.79,2.1652]
[1733977740378,2.1646,230.87,230.81,2.165]
[1733977740579,1.3152,230.91,230.81,2.165]
[1733977741078,1.3152,230.91,230.81,12.77336098]
[1733977741274,5.30075024,230.94,230.81,12.77336098]
[1733977741580,2.1642,230.9,230.81,12.77336098]
[1733977741778,2.8265,230.95,230.86,2.1646]
[1733977741985,11.95365586,230.94,230.86,2.1646]
[1733977742274,2.1641,230.91,230.86,2.1646]
[1733977744076,2.1641,230.91,230.85,2.48]
[1733977744285,2.1641,230.91,230.85,4.6447]
[1733977744575,2.1642,230.9,230.85,2.48]
[1733977744777,7.9823036,230.95,230.85,2.48]
[1733977744977,11.94928295,230.94,230.85,2.48]
[1733977745184,11.94928295,230.93,230.85,2.48]
[1733977745373,11.94928295,230.93,230.81,12.77336098]
[1733977745374,34.9308506,230.95,230.81,2.165]
[1733977745577,11.94770495,230.94,230.81,4.645]
[1733977745780,11.94770495,230.93,230.81,4.645]
[1733977745979,7.9823036,230.95,230.81,4.645]
[1733977746173,2.1643,230.9,230.81,4.645]
[1733977746378,2.1643,230.9,230.78,15.60516098]
[1733977746379,12.77336098,230.93,230.8,4.6451]
[1733977746576,11.94612717,230.92,230.8,2.48]
[1733977746783,2.1646,230.86,230.82,2.1649]
[1733977746974,12.77336098,230.93,230.82,2.1649]
[1733977747780,2.1646,230.87,230.82,2.1649]
[1733977750380,15.25336098,230.9,230.78,1.4469]
[1733977750585,15.25336098,230.9,230.77,2.48]
[1733977751283,8.17884283,230.84,230.77,2.48]
[1733977751886,2.1649,230.83,230.77,2.48]
[1733977752387,8.17884283,230.84,230.77,2.48]
[1733977752685,2.1651,230.81,230.77,2.48]
[1733977753589,8.17884283,230.84,230.77,2.48]
[1733977753978,2.1653,230.79,230.77,2.48]
[1733977754177,8.17884283,230.82,230.74,8.17884283]
[1733977755687,2.1653,230.79,230.74,8.17884283]
[1733977756484,2.1653,230.79,230.73,2.1658]
[1733977756683,2.1653,230.79,230.74,10.63884283]
[1733977757379,2.48,230.9,230.76,8.17884283]
[1733977757581,2.1649,230.83,230.76,8.17884283]
[1733977757982,2.165,230.82,230.77,2.1654]
[1733977758189,2.165,230.82,230.76,8.17884283]
[1733977758683,8.17884283,230.85,230.76,8.17884283]
[1733977758890,2.1652,230.79,230.74,10.63884283]
[1733977762595,2.1652,230.79,230.74,2.46]
[1733977762893,8.17884283,230.88,230.78,8.17884283]
[1733977763092,8.17884283,230.88,230.8,8.17884283]
[1733977763295,8.17884283,230.88,230.8,10.63884283]
[1733977763692,8.17884283,230.88,230.81,2.165]
[1733977764493,8.17884283,230.88,230.8,10.63884283]
[1733977764792,8.17884283,230.9,230.82,10.34374283]
[1733977765194,2.1644,230.88,230.82,10.34374283]
[1733977765391,8.17884283,230.9,230.8,2.46]
[1733977765697,2.1647,230.85,230.8,12.80394283]
[1733977766992,8.17884283,230.88,230.8,10.63884283]
[1733977767195,2.1646,230.86,230.81,2.165]
[1733977769893,2.1645,230.87,230.8,12.80394283]
[1733977770099,8.17884283,230.9,230.8,12.80394283]
[1733977771094,8.17884283,230.88,230.8,12.80394283]
[1733977771491,2.165,230.82,230.78,2.46]
[1733977771693,8.17884283,230.86,230.77,10.63884283]
[1733977771900,8.17884283,230.84,230.77,8.17884283]
[1733977772200,2.1652,230.79,230.75,13.37964283]
[1733977772691,2.1652,230.79,230.75,11.98404283]
[1733977772892,2.1652,230.79,230.75,10.63884283]
[1733977773697,2.1653,230.78,230.75,2.46]
[1733977774095,2.1652,230.8,230.75,2.46]
[1733977774401,8.17884283,230.82,230.75,2.46]
[1733977775599,2.1652,230.79,230.75,2.46]
[1733977776998,8.17884283,230.85,230.77,8.17884283]
[1733977777398,2.1649,230.83,230.78,2.1653]
[1733977777601,8.17884283,230.85,230.78,2.1653]
[1733977777800,179.53419839,230.91,230.81,8.17884283]
[1733977777801,8.17884283,230.87,230.81,8.17884283]
[1733977777996,2.1646,230.86,230.81,8.17884283]
[1733977779501,8.17884283,230.87,230.81,8.17884283]
[1733977779699,2.1647,230.85,230.81,8.17884283]
[1733977779897,2.1647,230.85,230.77,8.17884283]
[1733977779898,8.17884283,230.85,230.77,8.17884283]
[1733977780601,2.165,230.82,230.77,8.17884283]
[1733977782699,2.1651,230.8,230.76,2.46]
[1733977783005,8.17884283,230.83,230.76,2.46]
[1733977783610,2.1652,230.8,230.76,2.46]
[1733977786114,179.53419839,230.89,230.76,2.46]
[1733977786412,11.9654921,230.88,230.75,8.17884283]
[1733977786613,11.9654921,230.87,230.75,10.63884283]
[1733977786913,8.17884283,230.84,230.75,10.63884283]
[1733977787116,2.1651,230.81,230.76,2.1655]
[1733977788322,8.17884283,230.84,230.75,10.63884283]
[1733977788717,29.48589137,230.89,230.75,10.63884283]
[1733977788718,2.1653,230.78,230.75,10.63884283]
[1733977789120,8.17884283,230.82,230.75,10.63884283]
[1733977790619,2.1652,230.79,230.75,10.63884283]
[1733977791915,2.1652,230.79,230.75,2.46]
[1733977793123,2.1652,230.79,230.74,10.34454283]
[1733977793625,2.1651,230.81,230.76,8.17884283]
[1733977794727,2.1651,230.81,230.76,10.34434283]
[1733977795118,2.46,230.89,230.76,8.17884283]
[1733977795425,8.17884283,230.83,230.73,2.46]
[1733977795623,8.17884283,230.83,230.75,8.17884283]
[1733977796524,8.17884283,230.83,230.74,2.46]
[1733977796722,8.17884283,230.81,230.72,2.46]
[1733977796924,8.17884283,230.81,230.72,10.63884283]
[1733977797322,5.07247709,230.85,230.74,8.17884283]
[1733977797622,2.1651,230.8,230.75,2.1656]
[1733977797818,2.1651,230.8,230.74,8.17884283]
[1733977798221,2.1654,230.77,230.7,5.18738253]
[1733977798423,8.17884283,230.79,230.72,8.17884283]
[1733977798921,8.17884283,230.79,230.7,10.34484283]
[1733977798922,2.1656,230.76,230.7,10.34484283]
[1733977799124,8.17884283,230.79,230.7,10.63884283]
[1733977799518,8.17884283,230.79,230.7,8.17884283]
[1733977800329,2.1656,230.75,230.7,8.17884283]
[1733977800524,8.17884283,230.79,230.7,8.17884283]
[1733977800922,2.1657,230.75,230.7,8.17884283]
[1733977803131,2.1652,230.8,230.72,10.34474283]
[1733977803321,8.17884283,230.81,230.72,8.17884283]
[1733977804134,2.1654,230.78,230.72,10.34474283]
[1733977804833,2.1652,230.79,230.74,8.17884283]
[1733977805131,1.3806,230.84,230.74,8.17884283]
[1733977805332,1.3806,230.84,230.76,8.17884283]
[1733977805628,418.91312957,230.91,230.78,8.17884283]
[1733977805629,8.17884283,230.87,230.78,8.17884283]
[1733977805825,179.53419839,230.92,230.8,8.17884283]
[1733977806028,2.1645,230.88,230.82,2.1649]
[1733977806427,2.1645,230.87,230.8,10.34394283]
[1733977806629,8.17884283,230.89,230.8,10.34394283]
[1733977806822,8.17884283,230.87,230.77,2.46]
[1733977807031,2.1647,230.85,230.79,2.1652]
[1733977808234,10.34334283,230.87,230.81,2.165]
[1733977809026,2.1646,230.86,230.81,2.165]
[1733977813626,8.17884283,230.89,230.81,2.165]
[1733977813826,8.17884283,230.89,230.83,2.1648]
[1733977814736,2.1646,230.87,230.81,2.165]
[1733977815432,2.1644,230.89,230.82,8.17884283]
[1733977815933,8.17884283,230.91,230.82,8.17884283]
[1733977816635,2.1644,230.88,230.83,2.1648]
[1733977818443,2.7739,230.94,230.86,8.17884283]
[1733977818639,9.58564283,230.94,230.86,8.17884283]
[1733977818836,1.449,231.0,230.9,8.17884283]
[1733977819040,8.17884283,230.98,230.9,10.63884283]
[1733977820738,8.17884283,230.98,230.91,2.1641]
[1733977821742,2.1635,230.97,230.91,2.1641]
[1733977824336,2.1635,230.97,230.82,5.20308073]
[1733977824337,8.17884283,230.96,230.82,5.20308073]
[1733977824537,5.29301451,231.01,230.82,5.20308073]
[1733977824538,8.17884283,230.94,230.82,5.20308073]
[1733977824740,8.17884283,230.92,230.83,2.46]
[1733977824945,2.1644,230.88,230.83,2.46]
[1733977825236,8.17884283,230.9,230.79,1.3449]
[1733977825434,8.17884283,230.88,230.79,7.70360803]
[1733977825639,8.17884283,230.88,230.79,15.88245086]
[1733977826041,8.17884283,230.86,230.78,2.843]
[1733977826234,8.17884283,230.86,230.78,10.63884283]
[1733977828146,2.1649,230.83,230.78,10.63884283]
[1733977828437,8.17884283,230.86,230.78,10.63884283]
[1733977828644,10.34314283,230.9,230.83,2.1648]
[1733977828942,8.17884283,230.9,230.82,8.17884283]
[1733977829738,8.17884283,230.88,230.8,8.17884283]
[1733977830545,8.17884283,230.88,230.8,10.34394283]
[1733977830840,2.1647,230.85,230.8,8.17884283]
[1733977832341,2.1648,230.84,230.8,8.17884283]
[1733977833245,8.17884283,230.86,230.77,1.41]
[1733977833550,8.17884283,230.84,230.77,2.46]
[1733977834049,8.17884283,230.84,230.75,4.6256]
[1733977834256,8.17884283,230.84,230.75,12.80444283]
[1733977834544,2.1651,230.8,230.75,10.34444283]
[1733977834740,8.17884283,230.84,230.75,10.34444283]
[1733977834941,8.17884283,230.84,230.75,8.17884283]
[1733977835149,2.1655,230.77,230.73,8.17884283]
[1733977835351,2.1655,230.77,230.73,10.63884283]
[1733977836045,8.17884283,230.8,230.73,2.46]
[1733977836245,8.17884283,230.8,230.67,2.6963]